Cogmind - Beta 16 --- EXPLORER MODE // 2026.01.15 @ 13:34:12 Player: K.K.Y. Result: Destroyed by S-10 Pest with Light Assault Rifle Performance ------------- Evolutions (0) 0 Regions Visited (3) 600 Robots Destroyed (38) 190 Value Destroyed (1000) 1000 Prototype IDs (14) 280 Alien Tech Used (0) 0 Bonus (-213) -213 TOTAL SCORE: 1857 Bonus ------- Friendly Fire -213 Cogmind --------- Core Integrity 0/250 Matter 300/300 Energy 100/100 System Corruption 0% Temperature Cool (0) Movement Walking (340) Ox3 Location -10/Subcaves Parts ------- > --- POWER (1) -------- (None) > --- PROPULSION (2) --- Cargo Legs > --- UTILITY (3+2) ---- Humpback (++) > --- WEAPON (2) ------- Particle Gun Heavy Hammer > --- INVENTORY (35) --- Improved Heat Sink Improved Heat Sink Makeshift Coolant Network Medium Storage Unit Large Storage Unit Huge Storage Unit Huge Storage Unit Machine Analyzer Improved Terrain Scanner Makeshift Light Armor Plating Makeshift Light Armor Plating Heavy Riot Gun Heavy Battle Rifle Heavy Battle Rifle Battle Cannon Mining Laser Peak State ------------ > --- POWER ------------ Ion Engine > --- PROPULSION ------- Cargo Legs > --- UTILITY ---------- Large Storage Unit Humpback Structural Scanner Sensor Array > --- WEAPON ----------- Particle Gun Particle Gun > --- INVENTORY -------- Improved Heat Sink Improved Heat Sink Makeshift Coolant Network Medium Storage Unit Huge Storage Unit Huge Storage Unit Machine Analyzer Improved Terrain Scanner Makeshift Light Armor Plating Heavy Riot Gun Heavy Battle Rifle Mining Laser Heavy Hammer [Rating: 30] Favorites ----------- Power Ion Engine Engine Ion Engine Propulsion Improved Treads Treads Improved Treads Leg Cargo Legs Utility Sensor Array Device Sensor Array Storage Large Storage Unit Weapon Particle Gun Energy Gun Particle Gun Ballistic Gun Light Assault Rifle Special Weapon Mining Laser Impact Weapon Heavy Hammer Build | -11 -10 -10 -10 ------- Run | Yrd Mat Min Sub Slots Evolved 1 | . 1 . . Power . | . . . . Propulsion . | . . . . Utility 1 | . 1 . . Weapon . | . . . . Parts Attached 21 | 7 6 1 7 Power 2 | 1 1 . . Engine 2 | 1 1 . . Core . | . . . . Reactor . | . . . . Propulsion 7 | 2 2 . 3 Treads 6 | 2 2 . 2 Leg 1 | . . . 1 Wheel . | . . . . Hover . | . . . . Flight . | . . . . Utility 6 | 2 2 . 2 Device 3 | 1 1 . 1 Storage 3 | 1 1 . 1 Processor . | . . . . Hackware . | . . . . Protection . | . . . . Artifact . | . . . . Weapon 6 | 2 1 1 2 Energy Gun 2 | . 1 1 . Energy Cannon . | . . . . Ballistic Gun 2 | 2 . . . Ballistic Cannon . | . . . . Launcher . | . . . . Special Weapon 1 | . . . 1 Impact Weapon 1 | . . . 1 Slashing Weapon . | . . . . Piercing Weapon . | . . . . Special Melee Weapon . | . . . . Unidentified Prototypes 1 | . . . 1 Parts Lost 6 | . 1 . 5 Power 2 | . 1 . 1 Propulsion 1 | . . . 1 Utility 2 | . . . 2 Weapon 1 | . . . 1 Highest Loss Streak 2 | . 1 . 2 To Critical Strikes . | . . . . Average Backups 11 | 1 8 10 12 Power . | . . . . Propulsion 1 | . 2 2 . Utility 7 | . 4 6 8 Weapon 2 | . 2 2 3 Tool/Special . | . . . . Unused Backups 13 | . . . 13 Power . | . . . . Propulsion . | . . . . Utility 8 | . . . 8 Weapon 5 | . . . 5 Tool/Special . | . . . . Average Slot Usage (%) 78 | . 78 87 74 Engine 9 | . 11 12 6 Treads 16 | . 20 25 10 Leg 2 | . . . 5 Device 14 | . 12 12 17 Storage 11 | . 12 12 11 Energy Gun 15 | . 7 23 14 Ballistic Gun 3 | . 13 1 . Special Weapon 2 | . . . 4 Impact Weapon 1 | . . . 3 Peak Build Rating 30 | 7 12 13 30 Average Rating 16 | 5 9 12 21 On Entrance 7 | . 7 11 13 Avg Prop Armor Cover (%) . | . . . . Naked Turns . | . . . . Heaviest Build 208 | 18 30 32 208 Greatest Support 55 | 40 46 46 55 Greatest Overweight (x) 8 | . 8 . 3 Average Overweight (x) . | . . . . Largest Inventory Capacity 35 | 10 15 15 35 Average Capacity 18 | 9 12 15 23 Most Carried 18 | 5 13 12 18 Average Carried 12 | 1 8 10 14 Final Capacity 35 | 10 15 15 35 Final Carried 18 | 2 10 11 18 Class Distribution -------------------- 77% | Hacker-Mutant 22% | Hauler-Mutant Dominant Class ---------------- Hacker-Mutant | -10/Materials Hacker-Mutant | -10/Mines Hacker-Mutant | -10/Subcaves Resources | -11 -10 -10 -10 ----------- Run | Yrd Mat Min Sub Matter Collected 564 | 222 188 44 110 Remotely . | . . . . Salvage Created 1263 | 84 617 107 455 Parts 66 | 6 28 6 26 Haulers Intercepted 2 | . 2 . . Recyclers Shooed . | . . . . Parts Field Recycled . | . . . . Retrieved Matter . | . . . . Parts Self-Destructed . | . . . . Prevented . | . . . . Parts Restored . | . . . . Kills | -11 -10 -10 -10 ------- Run | Yrd Mat Min Sub Combat Hostiles Destroyed 28 | . 12 4 12 Melee 1 | . . . 1 Guns 22 | . 12 4 6 Cannons 2 | . . . 2 Classes Destroyed 9 | 2 4 . 3 Tunneler 1 | 1 . . . Hauler 2 | . 2 . . Recycler 2 | 1 1 . . Watcher 3 | . 3 . . Swarmer 6 | . 4 2 . Grunt 10 | . 8 2 . Artisan 3 | . . . 3 Subdweller 12 | . . . 12 Zionite 2 | . . . 2 Best Kill Streak 5 | 2 5 2 2 Combat Bots Only 5 | . 5 2 2 Max Kills in Single Turn 2 | 1 2 1 1 Gunslinging . | . . . . Exploded . | . . . . Melee 1 | . . . 1 Uniques/NPCs Destroyed . | . . . . Combat | -11 -10 -10 -10 -------- Run | Yrd Mat Min Sub Hostile Shots Fired 186 | . 87 6 93 Missed 37 | . 16 . 21 Hits 149 | . 71 6 72 Projectile 149 | . 71 6 72 AOE 1 | . . . 1 Critical Strikes 4 | . . 2 2 Damage Taken 1473 | . 470 47 956 Core 251 | . 126 4 121 Absorbed by Shields . | . . . . Ignored by Resistances 905 | . 313 31 561 Core Remaining (%) 100 | 100 . . . Volleys Fired 155 | 3 68 6 78 Largest 2 | 2 2 2 2 Hottest 165 | 40 85 130 165 Shots Fired 252 | 6 102 12 132 Gun 220 | 6 102 12 100 Cannon . | . . . . Launcher . | . . . . Special 32 | . . . 32 Kinetic 89 | 6 79 4 . Thermal 163 | . 23 8 132 Explosive . | . . . . Electromagnetic . | . . . . Robot Hit Streak 50 | 5 50 9 34 Robot Miss Streak 3 | . 3 . 2 Penetration Max . | . . . . Secondary Targets 4 | . 3 1 . Max Gunslinging Chain 1 | . 1 1 . Shots Hit Robots 186 | 5 88 8 85 Core Hits 70 | 4 36 6 24 Critical Kills . | . . . . Critical Parts Destroyed 3 | . 1 . 2 Critical Strikes 12 | . 5 . 7 Burn 8 | . 4 . 4 Destroy 1 | . 1 . . Smash 3 | . . . 3 Melee Attacks 9 | . . . 9 Impact 9 | . . . 9 Slashing . | . . . . Piercing . | . . . . Sneak Attacks . | . . . . Combat Hostiles . | . . . . Follow-up Attacks . | . . . . Damage Inflicted 2499 | 41 875 99 1484 Guns 2056 | 41 875 99 1041 Cannons . | . . . . Explosions . | . . . . Melee 323 | . . . 323 Ramming . | . . . . Kinetic 604 | 41 540 23 . Thermal 1572 | . 335 76 1161 Explosive . | . . . . Electromagnetic . | . . . . Impact 323 | . . . 323 Slashing . | . . . . Piercing . | . . . . Highest Corruption . | . . . . Average Corruption . | . . . . Corruption Purged . | . . . . Corruption Blocked . | . . . . Overload Shots . | . . . . Overflow Damage 79 | . . . 79 Projectiles . | . . . . Explosions . | . . . . Melee 79 | . . . 79 Knockbacks 1 | . . . 1 Impact 1 | . . . 1 Kinetic . | . . . . Secondary . | . . . . Self-Inflicted Damage . | . . . . Shots . | . . . . Rammed . | . . . . Targets Rammed . | . . . . Kicked . | . . . . Crushed . | . . . . Highest Temperature 268 | . 268 138 102 Average Temperature 60 | . 75 62 33 Received Heat Transfer 705 | . 354 72 279 Siege Activations . | . . . . Martial Activations . | . . . . Shielding Activations . | . . . . Robots Disrupted . | . . . . Combat Hostiles . | . . . . Robots Corrupted 2 | . . . 2 Combat Hostiles 2 | . . . 2 Parts Fried 2 | . . . 2 Impact Corruptions 2 | . . . 2 Robots Melted 1 | . . . 1 Combat Hostiles 1 | . . . 1 Parts Melted 5 | . 1 . 4 Heat Transferred 4320 | . 1073 185 3062 Parts Sabotaged . | . . . . Parts Stolen . | . . . . Parts Stripped . | . . . . Power Chain Reactions . | . . . . Alert | -11 -10 -10 -10 ------- Run | Yrd Mat Min Sub Maximum Alert Level . | . . . . Low Security (%) 100 | 100 100 100 . Level 1 . | . . . . Level 2 . | . . . . Level 3 . | . . . . Level 4 . | . . . . Level 5 . | . . . . High Security . | . . . . Max Security . | . . . . Peak Influence 90 | 10 90 54 . Initial . | . . . . Average 5 | . 9 1 . Influence Increases 503 | 10 359 104 30 Destroy 0b10 Robot/C 320 | . 240 80 . Destroy 0b10 Robot/NC 40 | 10 30 . . Destroy Leader 80 | . 60 20 . Successful Hack 14 | . 14 . . Disable Machine 4 | . . 4 . Partial Spotted 15 | . 15 . . Lose Combat Pursuer 30 | . . . 30 Influence Decreases 473 | 10 359 104 . Time Decay 463 | 10 349 104 . Lost Part 10 | . 10 . . Squads Dispatched 1 | . 1 . . Investigation 1 | . 1 . . Extermination . | . . . . Reinforcement . | . . . . Assault . | . . . . Garrison . | . . . . Intercept . | . . . . Searches Triggered . | . . . . Construction Impeded . | . . . . Haulers Reinforced . | . . . . Active Scanning Responses . | . . . . Cargo Convoy Interrupts . | . . . . Stealth | -11 -10 -10 -10 --------- Run | Yrd Mat Min Sub Distress Signals 1 | . 1 . . Communications Jammed . | . . . . Distress Signals . | . . . . Times Spotted 39 | . 17 4 18 Peak Tracking Total 6 | . 4 2 6 Tactical Retreats 1 | . . . 1 Traps | -11 -10 -10 -10 ------- Run | Yrd Mat Min Sub Traps Triggered 3 | . 2 . 1 Indirectly . | . . . . Trap Hack Attempts . | . . . . Triggered . | . . . . Disarmed 6 | . 6 . . Reprogrammed . | . . . . Reused . | . . . . Traps Extracted . | . . . . Installed . | . . . . Triggered . | . . . . Machines | -11 -10 -10 -10 ---------- Run | Yrd Mat Min Sub Machines Disabled 3 | . . 1 2 Max in Single Turn 1 | . . 1 1 Machines Repaired . | . . . . Machines Dismantled . | . . . . Machines Sabotaged . | . . . . Overloaded Fab Kills . | . . . . Hacking | -11 -10 -10 -10 --------- Run | Yrd Mat Min Sub Machines Accessed 12 | . 9 1 2 Terminals 8 | . 7 1 . Fabricators . | . . . . Repair Stations . | . . . . Recycling Units 2 | . 2 . . Scanalyzers . | . . . . Garrison Access . | . . . . Total Hacks 25 | . 18 2 5 Successful 18 | . 12 1 5 Failed 7 | . 6 1 . Catastrophic . | . . . . Database Lockouts . | . . . . Manual 12 | . 10 2 . Terminals 17 | . 15 2 . Fabricators . | . . . . Repair Stations . | . . . . Recycling Units 3 | . 3 . . Scanalyzers . | . . . . Garrison Access . | . . . . Terminal Hacks 9 | . 3 1 5 Record 4 | . . . 4 Prototype ID Bank 1 | . . 1 . Locate Traps 2 | . 2 . . Disarm Traps 1 | . 1 . . Proto ID Catalog 1 | . . . 1 Fabricator Hacks . | . . . . Repair Station Hacks . | . . . . Recycling Unit Hacks 2 | . 2 . . Retrieve Components 2 | . 2 . . Scanalyzer . | . . . . Garrison Access Hacks . | . . . . Unauthorized Hacks 7 | . 7 . . Terminals 7 | . 7 . . Botnet 7 | . 7 . . Fabricators . | . . . . Repair Stations . | . . . . Recycling Units . | . . . . Scanalyzers . | . . . . Garrison Access . | . . . . Data Cores Recovered . | . . . . Used . | . . . . Hacking Detections 7 | . 6 1 . Full Trace Events 2 | . 2 . . Feedback Events . | . . . . Feedback Blocked . | . . . . Robot Schematics Acquired . | . . . . Robots Built . | . . . . Authchips . | . . . . Time . | . . . . Total Robot Build Rating . | . . . . Part Schematics Acquired . | . . . . Parts Built . | . . . . Authchips . | . . . . Time . | . . . . Total Part Build Rating . | . . . . Part Studies Acquired . | . . . . Parts Repaired . | . . . . Time . | . . . . Parts Recycled . | . . . . Recycled Matter . | . . . . Retrieved Matter . | . . . . Retrieved Components 9 | . 9 . . Parts Scanalyzed . | . . . . Part Schematics Acquired . | . . . . Parts Damaged . | . . . . Bothacking | -11 -10 -10 -10 ------------ Run | Yrd Mat Min Sub Used RIF Installer . | . . . . Robots Hacked . | . . . . Non-combat . | . . . . Combat . | . . . . Robot Hacks Applied . | . . . . Relay Couplers Released . | . . . . Fabnet Peak Effective % . | . . . . Robots Rewired . | . . . . Allies Hacked . | . . . . Hacks Repelled . | . . . . Allies | -11 -10 -10 -10 -------- Run | Yrd Mat Min Sub Total Allies . | . . . . Largest Group . | . . . . Highest-Rated Group . | . . . . Highest-Rated Ally . | . . . . Total Orders . | . . . . Ally Attacks . | . . . . Total Damage . | . . . . Kills . | . . . . Allies Corrupted . | . . . . Allies Melted . | . . . . Intel | -11 -10 -10 -10 ------- Run | Yrd Mat Min Sub Active Infowar (turns) 6029 | 92 1405 1561 2971 Sensors 6029 | 92 1405 1561 2971 Structural 2206 | . . . 2206 Robot Analysis Total . | . . . . Derelict Logs Recovered 3 | . . 1 2 Drone Launches . | . . . . Drone Recoveries . | . . . . Exploration | -11 -10 -10 -10 ------------- Run | Yrd Mat Min Sub Turns Passed 6494 | 117 1405 1561 3411 Spaces Moved 2814 | 65 667 623 1459 Core 86 | 20 66 . . Treads 2082 | 45 601 623 813 Legs 646 | . . . 646 Wheels . | . . . . Hover . | . . . . Flight . | . . . . Fastest Speed 50 | 50 160 160 130 Average Speed 188 | 126 177 160 208 Slowest Speed 450 | 160 450 160 340 Overloaded Moves . | . . . . Propulsion Burnouts . | . . . . Robots Hopped . | . . . . Potential Cave-ins . | . . . . Cave-ins Triggered . | . . . . Exploration Rate (%) 73 | 4 98 101 92 Regions Visited 3 Branch Regions 2 Pre-discovered Areas 2 | . . 1 1 Known Exits Taken 3 | 1 1 1 . Unknown Exits Taken . | . . . . Scrap Searched 10 | . . 2 8 Spaces Dug . | . . . . Terrain Destroyed . | . . . . Melee . | . . . . Projectile . | . . . . AOE . | . . . . Terrain Rammed . | . . . . Walls Destroyed . | . . . . Machines Disabled . | . . . . Actions | -11 -10 -10 -10 --------- Run | Yrd Mat Min Sub Total 3686 | 94 806 1177 1609 Wait 634 | 13 40 544 37 Move 2811 | 64 666 622 1459 Hop . | . . . . Pick Up 34 | 7 16 2 9 Fast Attach 4 | 2 . . 2 Attach 18 | 5 9 1 3 Detach 6 | . 4 1 1 Swap 7 | . . . 7 Drop 8 | . 3 1 4 Fire 155 | 3 68 6 78 Melee 9 | . . . 9 Ram . | . . . . Kick . | . . . . Crush . | . . . . Escape Stasis . | . . . . Rewire . | . . . . Trap . | . . . . Miscellaneous . | . . . . Route ------- -11/Scrapyard -10/Materials (discovered 5 exits: *Mat x3 / *Min / *Sub) -10/Mines (discovered 3 exits: *Mat x2 / *Sub) -10/Subcaves (discovered 2 exits: *Mat x2) History --------- Turn | Location | Event 2 | -11/Scrapyard | Met Revision 17 12 | -11/Scrapyard | Identified exit to Materials 12 | -11/Scrapyard | Discovered exit to Materials (range 13) 118 | -11/Scrapyard | Entered Materials 118 | -10/Materials | Evolved 1 slot: Utility x1 318 | -10/Materials | Build established: Hacker-Mutant 337 | -10/Materials | Identified exit to Mines 337 | -10/Materials | Discovered exit to Mines (range 16) 426 | -10/Materials | Identified exit to Subcaves 426 | -10/Materials | Discovered exit to Subcaves (range 10) 449 | -10/Materials | Identified exit to Materials 449 | -10/Materials | Discovered exit to Materials (range 10) 764 | -10/Materials | Discovered exit to Materials (range 16) 953 | -10/Materials | Discovered exit to Materials (range 16) 1203 | -10/Materials | Core integrity fell below 50% 1523 | -10/Materials | Entered Mines 1758 | -10/Mines | Discovered exit to Materials (range 9) 1760 | -10/Mines | Received a Rocket Launcher from a helpful Derelict 1827 | -10/Mines | Learned location of Mines (-9) 2517 | -10/Mines | Discovered exit to Materials (range 12) 3076 | -10/Mines | Discovered exit to Subcaves (range 6) 3084 | -10/Mines | Entered Subcaves 3085 | -10/Subcaves | Approached by a straggling Scientist 3327 | -10/Subcaves | Learned location of Zion (-6) 3327 | -10/Subcaves | Met a Zionite searching for "candidates" 3808 | -10/Subcaves | Shifting Twisted Machinery released Hvy. Riot Gun 3814 | -10/Subcaves | Shifting Twisted Machinery released Mak. Light Armor Plating 3973 | -10/Subcaves | Shifting Twisted Machinery released Hvy. Battle Rifle 3979 | -10/Subcaves | Shifting Twisted Machinery released Sub. Machine Gun 4260 | -10/Subcaves | Disturbed a concealed Subdweller 4397 | -10/Subcaves | Shifting Twisted Machinery released Piercing Trap 4504 | -10/Subcaves | Shifting Twisted Machinery released Sub. Monowheel 4652 | -10/Subcaves | Visited 4L-MR0's lab 4681 | -10/Subcaves | Found Prototype Leg 4681 | -10/Subcaves | Identified Cargo Legs 4683 | -10/Subcaves | Attached Cargo Legs, gained temporary slots: Utility x2 4867 | -10/Subcaves | A swath of the cavern ceiling suddenly collapsed 5126 | -10/Subcaves | Identified exit to Materials 5126 | -10/Subcaves | Discovered exit to Materials (range 15) 5348 | -10/Subcaves | Build established: Hauler-Mutant 5467 | -10/Subcaves | Discovered exit to Materials (range 14) 5538 | -10/Subcaves | Visited Clippyterm 5549 | -10/Subcaves | Learned Factory emergency access door positions 5739 | -10/Subcaves | Core integrity fell below 20% 6462 | -10/Subcaves | Learned 4 Materials zone layouts 6495 | -10/Subcaves | Destroyed by S-10 Pest with Light Assault Rifle Last Messages --------------- 05816_ Found Spk. Treads. 05816_ Found 44 Matter. 05836_ Acquired Battle Cannon. 06055_ Sensor Array destroyed. 06082_ 23-RH9(R) destroyed. 06084_ Searching scrap... 06084_ Found Sub. Machine Gun. 06084_ Found 49 Matter. 06094_ Searching scrap... 06094_ Found Sub. Laser. 06094_ Found Sub. Shrapnel Launcher. 06094_ Found 34 Matter. 06124_ Subatomizers dissect the Sub. Machine Gun. 06237_ Acquired Hvy. Battle Rifle. 06459_ Triggered Piercing Trap. 06459_ Spikes shoot up from the floor. 06462_ Acquired derelict log, extracted data. Data stored: Materials zone layouts (x4). 06476_ Acquired Mak. Light Armor Plating. Map ----- +----------------------------------------------------+ | ????????????????## #??### ### ## | | ????????????????# ##???#### ##### | | ???????????????## #####??#### #???## | | ??????????????## ## ##???## ##????##### | | ??????????????# ## ##### #?????????## | | ??????????????# ## ##??????????## | | ??????????????# ## ##????????????? | | ??????????????# ## #??????????#### | | ??????????????## #### ########??????????# # | | ???????????????# ##??###?????????????????# " | | ???????????????# ###???????????????????????## [ | | ???????????????# ##????????????????????????#[]# | | ???????????????## ##???????????????????????# %# | | ?????????????######[ #???????????????????????#### | | ?????????????#^ ## #????????????????????????### | | ?????????????# # # #????????????????????????# | | ??????????????# #????????????????????????# | | ??????????????# ##????????????????????????# | | ?????????????## # ###?????????????????? ??????# | | ????????????## ##?????????###????????# ?????# | | ???????????## ###??????? #????????# ????## | | ???????????# #??????? #????????# #????# | | ???????????## ^ ######## #????????# ##??# | | ????????????# # ## # # #????????# #?## | | ????????????## ##???????# ### | | ?????????????## % @ #????????# | | ??????????????# ## ## #?# | | ??????????????## ######## ss ## | | ???????????????#####??????##s ### ??## | | #??????????????????????????? s ####?????? ???### | | ##?????????????????????????? #??????????????## | | ###????????????????????????? #?????????????## | | ####???????????????????????? #?????????????# | | ###???????????????????????? #????????????## | | ##????????????????????????? ??????????### | | ##????????????????????????? ?????###### | | ##????????????????????????? ????# # ## | | ##????????????????????????? ????# | | ###???????????????????????? " "???## | | ###?????????????????????????""?????## ## | | ##????????????????????????????????# ##### # | | ##????????????????????????????????# ##??## # | | ###??????######????????????????????# #???# # | | ##??????#######????????????????????# ##??? # | | ##??????###""####????????????????### ##?## ## | | ##???#####"""####???????????###### # ## ## | | ###?#########"###??????????##&&"## ### ? | | #######"###"#"###??????????#" #%#" # # # ##? | | #####""#""#"#"##??????????#|%#%[& ### #" ##?? | | # ####"#""#"#####??????????#="#&#" ## #" "### | +----------------------------------------------------+ Best States ------------- Heat Dissipation 25 Energy Generation 10 Energy Capacity 250 Matter Stores 300 Matter Capacity 300 Sight Range 16 Robot Scan Range 14 Terrain Scan Density 10 Resistance: KI 35 Resistance: TH 35 Resistance: EX 35 Resistance: EM 35 Resistance: I 35 Resistance: S 35 Resistance: P 35 Evasion (%) 55 Recoil Reduction 2 Offensive Hacking 20 Item Schematics ----------------- None Robot Schematics ------------------ None Fabricated ------------ Nothing Repaired ---------- Nothing Studied --------- None Alien Tech Used ----------------- None Achievements -------------- None Challenges ------------ None Game ------ Seed HypercooledHardenedSpecial Manual? 0 Play Time 00:22:37 Cumulative 281.1 hours Start 2026.01.15 @ 12:48:57 End 2026.01.15 @ 13:34:12 Sessions 1 Manual Loads 0 Difficulty Explorer Special Mode None Game No. 439 Rogue 0 Adventurer 0 Explorer 439 Win Type - Total 0 Types 0/0/0/0/0/0/0/0/0/0 Lore% 74 Gallery% 69 Achievement% 55 Wizard Run 0 Options --------- Layout 1 ASCII 0 Keyboard 0 Movement Mouse Keybinds 1 Fullscreen 1 Font 24/Smallcaps Map View 50x35 Zoom Use 0% Tactical HUD 1 Map Filters NONE Filters NONE Steam 1 RUN: 1b5c854c-9f76-4b17-896b-e0e1aa5ffa90